[Event "Czech Open-GM 2022"]
[Site "Pardubice"]
[Date "2022.07.26"]
[Round "5.28"]
[White "Delgerdalai, Bayarjavkhlan"]
[Black "Stinka, Jakub"]
[Result "1/2-1/2"]
[ECO "B61"]
[WhiteElo "2209"]
[BlackElo "2335"]
[Annotator "TA"]
[PlyCount "37"]
[EventDate "2022.07.22"]
[EventType "swiss"]
[EventCountry "CZE"]
[SourceTitle "playchess.com"]
[Source "ChessBase"]
[SourceQuality "1"]
[TimeControl "40/5400+30:1800+30"]

{[%evp 19,37,27,18,26,27,25,35,-50,-47,-54,-47,-47,-13,-66,0,0,0,0,0,0]} 1. e4 {[%emt 0:00:03]} c5 {[%emt 0:00:23]} 2. Nf3 {[%emt 0:00:07]} d6 {[%emt 0:00:05]} 3. d4 {[%emt 0:00:07]} cxd4 {[%emt 0:00:03]} 4. Nxd4 {[%emt 0:00:08]} Nf6 {[%emt 0:00:07]} 5. Nc3 {[%emt 0:00:08]} Nc6 {[%emt 0:00:37]} 6. Bg5 {[%emt 0:00:11]} Bd7 {[%emt 0:00:08]} 7. Qd2 {[%emt 0:01:30]} Rc8 {[%emt 0:01:40]} 8. O-O-O {[%emt 0:01:10]} Nxd4 {[%emt 0:03:46]} 9. Qxd4 {[%emt 0:00:22]} Qa5 {[%emt 0:00:31]} 10. Bxf6 {[%emt 0:06:35]} gxf6 {[%emt 0:00:18][%cal Bg7f6,Bf6f5][%mdl 32]} 11. Kb1 {[%emt 0:01:32] B61: Sicilian: Richter-Rauzer: 6...Bd7 7 Qd2.} Bg7 {[%emt 0:11:29]} 12. f4 {[%emt 0:07:33]} Qc5 {[%emt 0:04:48]} 13. Qd3 {[%emt 0:08:54]} (13. f5 $14) 13... f5 $1 $15 {[%emt 0:09:58][%cal Rg7c3]} 14. e5 $1 {[%emt 0:01:31]} O-O {[%emt 0:01:31] [#]} 15. Be2 $146 {[%emt 0:13:48]} ({Predecessor:} 15. g4 Rfd8 16. gxf5 dxe5 17. f6 exf6 18. fxe5 Bc6 {0-1 (18) Aranovitch,E (2269)-Milov,V (2643) Switzerland 2013}) 15... Be6 {[%emt 0:06:42]} (15... Rfd8 $5 {[%cal Rd6e5]} 16. exd6 Bc6 $11) 16. exd6 {[%emt 0:09:46]} ({White should try} 16. g4 $11 fxg4 17. h3 dxe5 18. hxg4) 16... Rfd8 {[%emt 0:17:42]} (16... exd6 $15 17. Bf3 (17. Qxd6 $2 Qa5 $19) 17... Bxc3 18. Qxc3 Qxc3 19. bxc3 Rxc3) 17. Qb5 $1 $11 {[%emt 0:13:35] [#] Qxc5 is the strong threat. The position is equal.} ({But not} 17. Qg3 Rxd6 18. Rxd6 Qxd6 $17) 17... exd6 {[%emt 0:10:17]} ({Don't take} 17... Bxc3 18. Qxc5 Rxc5 19. dxe7 $14) 18. Qxc5 $1 {[%emt 0:01:17]} dxc5 {[%emt 0:00:50]} 19. Bf3 {[%emt 0:10:17] Weighted Error Value: White=0.22 (precise) /Black=0.10 (very precise)} 1/2-1/2

[Event "Czech Open-GM 2022"]
[Site "Pardubice"]
[Date "2022.07.26"]
[Round "5.29"]
[White "Jares, Michal"]
[Black "Nurkiewicz, Maciej"]
[Result "1/2-1/2"]
[ECO "A46"]
[WhiteElo "2208"]
[BlackElo "2332"]
[Annotator "TA"]
[PlyCount "89"]
[EventDate "2022.07.22"]
[EventType "swiss"]
[EventCountry "CZE"]
[SourceTitle "playchess.com"]
[Source "ChessBase"]
[SourceQuality "1"]
[TimeControl "40/5400+30:1800+30"]

{[%evp 14,89,8,18,30,26,19,0,20,25,27,19,14,-7,1,2,0,0,11,-22,-20,-22,5,0,0,-7,-10,-104,14,21,75,69,77,71,83,80,88,94,80,69,70,6,7,0,24,24,24,24,24,24,25,25,25,25,25,25,25,0,0,0,0,0,9,0,0,0,0,0,0,0,0,0,0,0,0,0,0,0]} 1. d4 {[%emt 0:00:04]} Nf6 {[%emt 0:00:07]} 2. Nf3 {[%emt 0:00:08]} e6 {[%emt 0:00:04]} 3. g3 {[%emt 0:00:22]} c5 {[%emt 0:00:05]} 4. Bg2 {[%emt 0:00:42]} cxd4 {[%emt 0:00:11]} 5. O-O {[%emt 0:00:24]} d5 {[%emt 0:00:14]} 6. b3 {[%emt 0:09:48]} Nc6 {[%emt 0:20:24]} 7. Nxd4 {[%emt 0:02:23]} Bc5 {[%emt 0:11:33]} 8. Bb2 {[%emt 0:01:08] 8.Nxc6 injects fresh life into this line.} Qb6 {[%emt 0:00:26][%cal Rc5d4] D02: 1 d4 d5 2 Nf3 sidelines, including 2...Nf6 3 g3 and 2...Nf6 3 Bf4.} 9. e3 {[%emt 0:01:26]} O-O {[%emt 0:05:34]} 10. Nf3 {[%emt 0:25:44]} Ne4 {[%emt 0:05:36] [#]} 11. Qe2 $146 {[%emt 0:05:03]} ({Predecessor:} 11. Nd4 f5 12. Nc3 Qd8 13. Nxe4 fxe4 14. Nxc6 bxc6 15. h4 Ba6 16. Re1 Bb4 17. Qg4 Qe7 18. Red1 {0-1 (24) Djacanin,G-Cabarkapa,V (2225) Arandjelovac 1993}) 11... Rd8 {[%emt 0:03:57]} 12. Nbd2 {[%emt 0:11:03]} Nxd2 {[%emt 0:00:11]} 13. Qxd2 {[%emt 0:00:26]} Bd7 {[%emt 0:01:29]} 14. Rfd1 {[%emt 0:01:53]} Rac8 {[%emt 0:00:39]} 15. a3 $40 {[%emt 0:01:54][%mdl 128] White has some attack.} Be8 {[%emt 0:02:07]} 16. Ne5 {[%emt 0:04:31]} ({Reject} 16. Qc3 d4 17. exd4 (17. Nxd4 Nxd4 18. exd4 Bxa3 $17) 17... Nxd4 $1 18. Nxd4 Bxd4 19. Qxd4 Rxd4 20. Bxd4 Qc7 $17) 16... Nxe5 {[%emt 0:08:12]} 17. Bxe5 {[%emt 0:00:03]} a5 {[%emt 0:00:37]} 18. Bc3 {[%emt 0:02:45]} Ra8 {[%emt 0:00:21]} 19. Bd4 {[%emt 0:00:44]} a4 {[%emt 0:02:01]} 20. e4 {[%emt 0:11:11] [#]} (20. c4 $11 {keeps the balance.}) 20... Bc6 {[%emt 0:07:11]} ({Much worse is} 20... axb3 $6 21. cxb3 Bc6 22. Bxc5 Qxc5 23. exd5 $11) (20... dxe4 $1 $17 21. Bxc5 Qxc5 22. Qxd8 Rxd8 23. Rxd8 Qe7) 21. exd5 $11 {[%emt 0:02:06]} (21. Bxc5 {feels hotter.} Qxc5 22. exd5 axb3 23. cxb3 Bxd5 24. a4) 21... Bxd4 {[%emt 0:03:32]} (21... axb3 $11 {remains equal.} 22. cxb3 (22. dxc6 Rxd4 23. Qe1 Rxd1 $17) 22... Bxd5) 22. Qxd4 $16 {[%emt 0:00:17]} Qxd4 {[%emt 0:00:07]} 23. Rxd4 {[%emt 0:00:01][%cal Od5c6]} Bxd5 {[%emt 0:05:03] [#]} 24. Rad1 $1 {[%emt 0:05:14] Black must now prevent c4.} Rdc8 {[%emt 0:05:54]} (24... axb3 $2 25. c4 $18) 25. Bxd5 {[%emt 0:01:27]} exd5 {[%emt 0:00:05]} 26. Rxd5 {[%emt 0:00:43][%mdl 4096] Endgame KRR-KRR} g6 {[%emt 0:00:10]} 27. Rb5 {[%emt 0:03:26] White is more active.} ({White should try} 27. bxa4 $14 Rxc2 28. R1d4) 27... Rxc2 $11 {[%emt 0:01:34]} 28. Rxb7 {[%emt 0:02:06]} axb3 {[%emt 0:00:27]} 29. Rxb3 {[%emt 0:00:28]} Ra2 {[%emt 0:00:06]} 30. Rdd3 {[%emt 0:00:12]} h5 {[%emt 0:00:21]} 31. Rf3 {[%emt 0:00:49]} Ra7 {[%emt 0:00:05] Against Rb7} 32. Kg2 {[%emt 0:00:43]} Kg7 {[%emt 0:00:09]} 33. h3 {[%emt 0:00:37]} Kg8 {[%emt 0:01:45]} 34. Rfd3 {[%emt 0:02:44]} Kg7 {[%emt 0:00:24]} 35. g4 {[%emt 0:00:55]} hxg4 {[%emt 0:01:18] The position is equal.} 36. hxg4 {[%emt 0:00:02]} Ra4 {[%emt 0:01:02]} 37. Kg3 {[%emt 0:00:18]} Ra7 {[%emt 0:01:04]} 38. f3 {[%emt 0:00:37]} g5 {[%emt 0:03:02]} 39. Rd5 {[%emt 0:01:29]} f6 {[%emt 0:00:49]} 40. Rdd3 {[%emt 0:01:21]} Kg6 {[%emt 0:00:30]} 41. f4 {[%emt 0:03:46]} gxf4+ {[%emt 0:00:00]} 42. Kxf4 {[%emt 0:00:12]} Ra4+ {[%emt 0:00:00]} 43. Kf3 {[%emt 0:00:49]} Kg5 {[%emt 0:00:13]} 44. Rb5+ {[%emt 0:00:43]} Kg6 {[%emt 0:00:08]} 45. Rbb3 {[%emt 0:00:49] Weighted Error Value: White=0.13 (very precise) /Black=0.10 (very precise)} 1/2-1/2

[Event "Czech Open-GM 2022"]
[Site "Pardubice"]
[Date "2022.07.26"]
[Round "5.30"]
[White "Mladek, Richard"]
[Black "Levitan, Caleb Levi"]
[Result "1-0"]
[ECO "D31"]
[WhiteElo "2330"]
[BlackElo "1826"]
[Annotator "TA"]
[PlyCount "83"]
[EventDate "2022.07.22"]
[EventType "swiss"]
[EventCountry "CZE"]
[SourceTitle "playchess.com"]
[Source "ChessBase"]
[SourceQuality "1"]
[TimeControl "40/5400+30:1800+30"]

{[%evp 9,83,23,27,20,22,21,29,16,27,15,32,0,6,0,10,13,18,8,16,6,25,16,24,18,32,0,19,7,57,60,63,61,52,54,75,62,73,67,51,43,56,56,56,56,164,171,206,199,225,225,255,246,298,299,738,579,738,731,1482,1416,1759,1746,1658,1540,1951,1840,5225,2760,5781,5781,5381,2854,2792,2770,1568,1447]} 1. d4 {[%emt 0:00:02]} d5 {[%emt 0:00:09]} 2. c4 {[%emt 0:00:02]} e6 {[%emt 0:00:13]} 3. Nc3 {[%emt 0:00:03]} a6 {[%emt 0:00:20]} 4. cxd5 {[%emt 0:00:03]} exd5 {[%emt 0:00:08]} 5. Nf3 {[%emt 0:00:03]} Nf6 {[%emt 0:00:45]} 6. Bg5 {[%emt 0:00:02][%cal Bc1g5,Bg5h4,Bh4g3][%mdl 32] D37: Queen's Gambit Declined: 5 Bf4.} Be6 {[%emt 0:00:31]} 7. e3 {[%emt 0:02:16]} Nbd7 {[%emt 0:01:19]} 8. Bd3 {[%emt 0:02:31] White has an edge.} Bd6 {[%emt 0:00:58]} 9. O-O {[%emt 0:01:32]} c6 {[%emt 0:00:30] 9...c6 is better than 9...0-0.} 10. Qc2 {[%emt 0:02:27]} Qc7 {[%emt 0:00:40]} 11. Bh4 {[%emt 0:01:06]} Bg4 {[%emt 0:08:45]} 12. Bg3 {[%emt 0:07:27]} O-O {[%emt 0:04:12]} 13. Rac1 {[%emt 0:07:21] [#]} Rfe8 $146 {[%emt 0:14:45]} ({Predecessor:} 13... Bxg3 14. hxg3 Bh5 15. b4 Bg6 16. Bxg6 hxg6 17. a4 Qd6 18. Qb3 Rfc8 19. a5 Rc7 {0-1 (56) Rajesh,V (2378)-Savchenko,B (2576) Madurai 2019}) 14. Rfe1 {[%emt 0:04:29]} Bxf3 {[%emt 0:09:42]} 15. gxf3 {[%emt 0:00:52]} Nf8 {[%emt 0:00:33]} 16. Na4 {[%emt 0:07:07]} Ne6 {[%emt 0:04:29]} 17. Bf1 {[%emt 0:02:41]} Rad8 {[%emt 0:13:02]} 18. b4 {[%emt 0:07:35]} h5 {[%emt 0:11:58]} (18... Nh5 $11) 19. Qf5 {[%emt 0:01:03]} Qe7 {[%emt 0:02:46]} 20. Nc5 {[%emt 0:04:40]} g6 {[%emt 0:00:38]} 21. Qh3 {[%emt 0:00:50]} Nh7 {[%emt 0:03:29]} 22. Kh1 {[%emt 0:02:30] White is more active.} Bxg3 {[%emt 0:03:34]} 23. Qxg3 {[%emt 0:02:35]} Kg7 {[%emt 0:04:03]} 24. h4 {[%emt 0:05:02]} Nhf8 {[%emt 0:01:49]} 25. Bd3 {[%emt 0:02:15]} Nxc5 {[%emt 0:01:53]} 26. bxc5 {[%emt 0:00:15]} Qf6 {[%emt 0:00:36] White now steadily converts the win.} (26... Qe6 $14) 27. Rb1 {[%emt 0:01:29]} Re7 {[%emt 0:00:06]} 28. f4 {[%emt 0:02:22]} Kh7 {[%emt 0:03:06]} 29. Rg1 {[%emt 0:00:24]} Rde8 {[%emt 0:01:07]} 30. Rg2 {[%emt 0:01:01]} Ne6 {[%emt 0:02:49]} 31. f5 {[%emt 0:01:20]} gxf5 {[%emt 0:00:40]} (31... Nf8 32. Qh2 Kh8) 32. Qf3 {[%emt 0:02:49] White is clearly winning.} Ng7 {[%emt 0:01:43]} 33. Rbg1 {[%emt 0:00:10]} Rg8 {[%emt 0:00:18] [#]} 34. Bxf5+ $1 {[%emt 0:00:52][%mdl 576] Deflection} Nxf5 {[%emt 0:00:26]} (34... Qxf5 35. Rxg7+) 35. Qxh5+ {[%emt 0:00:10]} Nh6 {[%emt 0:01:13]} 36. Rxg8 {[%emt 0:00:21]} Re4 {[%emt 0:00:20]} 37. R1g5 {[%emt 0:05:47]} a5 {[%emt 0:00:47]} 38. a4 {[%emt 0:00:15] [#] And now f3 would win.} Re6 {[%emt 0:00:50]} 39. f3 {[%emt 0:00:42]} Re7 {[%emt 0:00:36]} 40. R5g7+ {[%emt 0:00:09]} Qxg7 {[%emt 0:00:18]} 41. Rxg7+ {[%emt 0:30:06]} Kxg7 {[%emt 0:30:05]} 42. Qg5+ {[%emt 0:00:05] Weighted Error Value: White=0.11 (very precise) /Black=0.21 (precise)} 1-0

[Event "Czech Open-GM 2022"]
[Site "Pardubice"]
[Date "2022.07.26"]
[Round "5.31"]
[White "Dubinski, Mateusz"]
[Black "Vojta, Jakub"]
[Result "1/2-1/2"]
[ECO "A46"]
[WhiteElo "2206"]
[BlackElo "2326"]
[Annotator "TA"]
[PlyCount "121"]
[EventDate "2022.07.22"]
[EventType "swiss"]
[EventCountry "CZE"]
[SourceTitle "playchess.com"]
[Source "ChessBase"]
[SourceQuality "1"]
[TimeControl "40/5400+30:1800+30"]

{[%evp 13,121,15,27,20,32,0,0,0,18,0,0,0,0,0,0,0,0,0,14,16,32,27,35,40,50,55,66,49,58,60,62,56,61,56,107,109,108,109,111,45,58,54,69,62,68,70,78,72,127,115,314,0,106,109,114,105,116,98,95,78,80,76,79,68,114,98,100,0,0,0,0,0,0,0,0,0,0,0,0,0,0,0,0,0,0,0,0,0,0,0,0,0,0,0,0,0,0,0,0,0,0,0,0,0,0,0,0,0,0,0]} 1. d4 {[%emt 0:00:04]} Nf6 {[%emt 0:00:02]} 2. Nf3 {[%emt 0:00:10]} e6 {[%emt 0:00:19]} 3. e3 {[%emt 0:02:01]} b6 {[%emt 0:00:30]} 4. Bd3 {[%emt 0:00:15]} Bb7 {[%emt 0:00:05]} 5. O-O {[%emt 0:00:35]} c5 {[%emt 0:04:01]} 6. c4 {[%emt 0:02:51]} Be7 {[%emt 0:06:07] 6...cxd4 is more fashionable.} 7. Nc3 {[%emt 0:02:24]} d5 {[%emt 0:04:17]} 8. cxd5 {[%emt 0:02:37] E14: Queen's Indian: Classical Variation (4 e3).} Nxd5 {[%emt 0:12:26]} 9. Bb5+ {[%emt 0:13:05]} Bc6 $1 {[%emt 0:08:09]} 10. Qa4 {[%emt 0:05:58]} Bxb5 {[%emt 0:01:44]} (10... Qd7 $5 {[%cal Rd5c3]} 11. Bxc6 Nxc6 $11) 11. Qxb5+ {[%emt 0:00:45]} Qd7 {[%emt 0:00:16]} 12. Qxd7+ {[%emt 0:04:27]} Nxd7 {[%emt 0:00:13]} 13. Nxd5 {[%emt 0:01:25]} exd5 {[%emt 0:00:02]} 14. dxc5 {[%emt 0:00:47]} bxc5 {[%emt 0:00:50] [#]} 15. b3 $146 {[%emt 0:01:52]} ({Predecessor:} 15. Rd1 Nb6 16. b3 Bf6 17. Rb1 O-O 18. Bb2 Be7 19. Ne5 Rfc8 20. Rbc1 Rc7 21. Nd3 {1-0 (55) Shahin,W (2109)-Giss,A (2006) Bayern 2015}) 15... Bf6 {[%emt 0:11:44]} 16. Rb1 {[%emt 0:01:24]} Ke7 {[%emt 0:00:33]} 17. e4 dxe4 {[%emt 0:05:22]} 18. Re1 {[%emt 0:03:45]} Kd6 {[%emt 0:02:56]} 19. Rxe4 {[%emt 0:04:49]} Rhe8 {[%emt 0:02:16]} 20. Bf4+ {[%emt 0:08:00]} Kc6 {[%emt 0:00:39]} 21. Rc4 {[%emt 0:09:37]} Nb6 {[%emt 0:07:05]} 22. Rc2 {[%emt 0:00:51]} Nd5 {[%emt 0:00:05] Inhibits Be3.} 23. Bd2 {[%emt 0:00:07]} Kd6 {[%emt 0:08:55]} (23... Rac8 $14) 24. Rd1 $16 {[%emt 0:03:33]} Rac8 {[%emt 0:07:08]} 25. Be3 {[%emt 0:14:26]} Red8 {[%emt 0:02:31]} 26. Rdc1 {[%emt 0:03:26] White is more active.} (26. g3 $16) 26... Nxe3 $14 {[%emt 0:01:20]} 27. fxe3 {[%emt 0:00:02]} Kd5 {[%emt 0:03:05]} 28. Kf2 {[%emt 0:00:35]} Rd6 {[%emt 0:00:52]} 29. Rc4 {[%emt 0:02:48]} Ra6 {[%emt 0:06:16]} 30. R1c2 {[%emt 0:00:06]} Bd8 {[%emt 0:01:30]} (30... Ke6 $142) 31. Rd2+ $16 {[%emt 0:02:32]} Ke6 $2 {[%emt 0:00:13]} (31... Kc6 $16) 32. Rdc2 $2 {[%emt 0:01:21]} (32. Re4+ $18 Kf6 33. Re8) 32... f6 {[%emt 0:01:09]} (32... Kd5 $1 $11 {keeps the balance.}) 33. b4 {[%emt 0:01:33]} (33. Nd4+ {seems wilder.} Kd5 34. b4 Ra4 35. Ne2) 33... Ra4 {[%emt 0:00:55]} 34. Rxc5 {[%emt 0:00:41]} Rxc5 {[%emt 0:00:06]} 35. bxc5 {[%emt 0:00:05][%mdl 4096] Endgame Strongly threatening c6. KRB-KRN} Bc7 {[%emt 0:00:38]} 36. h3 {[%emt 0:04:56]} Kd5 {[%emt 0:00:24] [#]} 37. Nd4 $1 {[%emt 0:00:44]} g6 {[%emt 0:02:39]} 38. g4 {[%emt 0:02:01]} a6 {[%emt 0:01:28]} (38... Rb4 $14) 39. Ke2 {[%emt 0:01:25]} Ra5 {[%emt 0:00:35]} 40. Kd3 {[%emt 0:01:14]} (40. Nb3 $16 Ra4 41. Kf3) 40... Rxc5 $11 {[%emt 0:00:30] The position is equal.} 41. e4+ {[%emt 0:09:49]} Kd6 {[%emt 0:00:28]} 42. Rxc5 {[%emt 0:00:07]} Kxc5 {[%emt 0:00:04] KB-KN} 43. Ne6+ {[%emt 0:12:01]} Kd6 {[%emt 0:00:04]} 44. Nxc7 {[%emt 0:00:07]} Kxc7 {[%emt 0:00:04] KP-KP} 45. Kd4 {[%emt 0:00:35]} Kd6 {[%emt 0:01:13]} 46. h4 {[%emt 0:09:30] [#] aiming for g5.} h6 {Against g5} 47. a3 a5 {[%emt 0:14:45] White must now prevent ...a4.} 48. a4 {[%emt 0:01:01]} Ke6 {[%emt 0:01:04]} 49. Kc5 {[%emt 0:00:47]} Ke5 {[%emt 0:00:09]} 50. Kb6 {[%emt 0:00:07]} Kxe4 {[%emt 0:00:18]} 51. Kxa5 {[%emt 0:00:05] And now Kb6 would win.} f5 {[%emt 0:00:22]} 52. gxf5 {[%emt 0:00:07]} gxf5 {[%emt 0:00:06] KPP-KPP} 53. Kb6 {[%emt 0:00:42] White wants to mate with a5.} f4 {[%emt 0:00:05]} 54. a5 {[%emt 0:00:03] a6 would kill now.} f3 {[%emt 0:00:04]} 55. a6 {[%emt 0:00:03] Intending a7 and mate.} f2 {[%emt 0:00:04]} 56. a7 {[%emt 0:00:03]} f1=Q {[%emt 0:00:06] ( -> ...Qf6+)} 57. a8=Q+ {[%emt 0:00:04]} Ke3 {[%emt 0:02:11]} 58. Qe8+ {[%emt 0:03:18]} Kd2 {[%emt 0:00:39]} 59. Qh5 {[%emt 0:00:39]} Qf6+ {[%emt 0:00:32]} 60. Kc7 {[%emt 0:00:24]} Ke3 {[%emt 0:01:01]} 61. Qg4 {[%emt 0:01:01] White really could win this.  Weighted Error Value: White=0.12 (very precise) /Black=0.13 (very precise)} 1/2-1/2

[Event "Czech Open-GM 2022"]
[Site "Pardubice"]
[Date "2022.07.26"]
[Round "5.32"]
[White "Taborsky, Rostislav"]
[Black "Sorm, Daniel"]
[Result "0-1"]
[ECO "D30"]
[WhiteElo "2192"]
[BlackElo "2308"]
[Annotator "TA"]
[PlyCount "102"]
[EventDate "2022.07.22"]
[EventType "swiss"]
[EventCountry "CZE"]
[SourceTitle "playchess.com"]
[Source "ChessBase"]
[SourceQuality "1"]
[TimeControl "40/5400+30:1800+30"]

{[%evp 16,102,17,0,4,0,7,22,25,11,7,0,65,58,82,56,62,58,47,52,67,72,68,90,89,112,102,73,83,75,78,31,30,29,30,16,25,14,25,27,112,104,115,111,92,82,105,105,105,105,106,97,146,143,156,129,133,147,138,103,100,113,101,0,0,-9,-9,-10,-8,-9,0,0,0,-18,0,0,0,0,-8,-52,-52,-54,-58,-72,-87,-356,-170,-29985,-6103]} 1. d4 {[%emt 0:01:24]} d5 {[%emt 0:00:24]} 2. c4 {[%emt 0:00:19]} e6 {[%emt 0:00:15]} 3. Nf3 {[%emt 0:00:24]} Nf6 {[%emt 0:00:28]} 4. e3 {[%emt 0:01:40]} c5 {[%emt 0:04:57]} 5. Nc3 {[%emt 0:01:33]} a6 {[%emt 0:02:37]} 6. cxd5 {[%emt 0:07:27]} exd5 {[%emt 0:00:29]} 7. Be2 {[%emt 0:00:55]} Nc6 {[%emt 0:02:55]} 8. O-O {[%emt 0:00:28]} cxd4 {[%emt 0:04:24]} 9. Nxd4 {[%emt 0:01:25]} Bd6 {[%emt 0:02:27] D32: Tarrasch Defence: Sidelines and lines without g3.} 10. Bf3 {[%emt 0:02:57]} Be5 {[%emt 0:02:04]} 11. b3 {[%emt 0:15:47]} O-O {[%emt 0:09:15] The position is equal.} 12. Nce2 {[%emt 0:20:55] [#]} Qd6 $146 {[%emt 0:05:50]} ({Predecessor:} 12... Be6 13. Bb2 Qc7 14. g3 Rad8 15. Rc1 Bh3 16. Re1 Rfe8 17. Qc2 Nxd4 18. Bxd4 Qxc2 19. Rxc2 {1-0 (54) Diamant,A (2499)-De Paula,R (2249) Goiania 2016}) 13. h3 {[%emt 0:05:41]} Qe7 {[%emt 0:05:17]} (13... Re8 $11) 14. Bb2 $14 {[%emt 0:00:31]} Bc7 {[%emt 0:00:29]} 15. Nxc6 {[%emt 0:05:51]} bxc6 {[%emt 0:00:12]} 16. Rc1 {[%emt 0:00:52]} Bd7 {[%emt 0:07:06]} 17. Qd4 {[%emt 0:02:01]} Rfe8 {[%emt 0:04:26]} 18. Rfd1 {[%emt 0:01:53][%cal Rf3d5]} Rac8 {[%emt 0:08:53]} 19. Qh4 {[%emt 0:06:41]} Be5 {[%emt 0:04:25]} 20. Bxe5 {[%emt 0:00:48]} Qxe5 {[%emt 0:00:07]} 21. Qf4 {[%emt 0:03:24]} Qe7 {[%emt 0:02:32]} 22. Nc3 {[%emt 0:01:04]} Be6 {[%emt 0:00:54]} 23. e4 {[%emt 0:03:21]} (23. Be2 $16) 23... Qb4 {[%emt 0:00:40]} 24. Qd2 {[%emt 0:04:17][%cal Rc3d5]} a5 {[%emt 0:02:39]} 25. exd5 {[%emt 0:03:04]} cxd5 {[%emt 0:00:06]} 26. Qd4 {[%emt 0:01:43]} Rc7 {[%emt 0:03:08]} 27. Ne2 {[%emt 0:01:40]} Rec8 {[%emt 0:01:17]} (27... Qxd4 $11 {remains equal.} 28. Nxd4 Rec8 29. Rxc7 Rxc7) 28. Rxc7 $16 Rxc7 {[%emt 0:00:03] [#]} 29. Qxb4 $1 {[%emt 0:03:26]} axb4 {[%emt 0:00:05]} 30. Rd4 {[%emt 0:00:49]} Rb7 {[%emt 0:03:04]} 31. Nf4 {[%emt 0:00:19] Against h5} Kf8 {[%emt 0:05:28]} 32. Nd3 {[%emt 0:00:12]} ({Don't blunder} 32. Nxd5 $2 Nxd5 33. Bxd5 Rd7 34. Rxb4 Rxd5 $19) 32... Ke7 {[%emt 0:00:07]} 33. Rxb4 {[%emt 0:02:24]} Ra7 {[%emt 0:00:20]} (33... Rxb4 $142 34. Nxb4 Kd6) 34. a4 {[%emt 0:00:39]} Kd6 {[%emt 0:00:17]} 35. Rb6+ {[%emt 0:00:35]} Kc7 {[%emt 0:00:06]} 36. Rb5 {[%emt 0:00:53]} Bd7 {[%emt 0:00:35]} 37. Rc5+ {[%emt 0:00:38]} Kd6 {[%emt 0:00:11]} 38. Rc1 {[%emt 0:00:20]} Rb7 {[%emt 0:00:46]} 39. Nc5 {[%emt 0:00:55]} (39. Bd1 $16) 39... Rc7 $1 $11 {[%emt 0:00:05]} 40. b4 {[%emt 0:00:24] aiming for Ra1.} Bxa4 $1 {[%emt 0:00:24]} 41. Be2 {[%emt 0:09:12]} Nd7 {[%emt 0:03:31][%cal Rd7c5]} 42. Ra1 {[%emt 0:01:34]} Bc2 {[%emt 0:01:17]} 43. Nxd7 {[%emt 0:10:41]} Rxd7 {[%emt 0:04:25][%mdl 4096] Endgame KRB-KRB} 44. Rc1 {[%emt 0:02:08]} Rc7 {[%emt 0:04:09]} 45. f4 {[%emt 0:01:29]} d4 {[%emt 0:03:50]} 46. Kf2 {[%emt 0:00:36]} Rc3 {[%emt 0:00:39]} 47. Ke1 {[%emt 0:00:39]} Be4 {[%emt 0:02:00][%csl LRc1,LRg2]} 48. Rxc3 {[%emt 0:02:05]} dxc3 {[%emt 0:00:07]} 49. g3 {[%emt 0:00:28]} Kd5 {[%emt 0:02:23] And now ...Bc2 would win.} 50. Ba6 $2 {[%emt 0:01:12][%mdl 8192]} (50. Kd1 $17) 50... Kd4 {[%emt 0:00:29]} (50... Bc2 $142 {Hoping for ...Bb3.} 51. Ke2 Kd4) 51. Ke2 $2 {[%emt 0:00:18] [#]} (51. Kd1 $19) 51... Bf3+ $1 {[%emt 0:01:38][%mdl 512] Never resign too early!  Weighted Error Value: White=0.28 (precise) /Black=0.15 (very precise)} 0-1